fUST/lending_fUST_20241109
["ID","MTS","AMOUNT","RATE_DAILY","PERIOD"]
[341723199,1731138640732,-286.51432523,0.00027636,2]
[341723200,1731138640841,-216.27523047,0.00027636,2]
[341723201,1731138640857,-283.72476953,0.00027636,2]
[341723202,1731138640867,-1317.08,0.00027636,2]
[341723203,1731138640876,-636.78,0.00027636,2]
[341723204,1731138640887,-128.69950649,0.00027636,2]
[341723205,1731138640899,-315.88049351,0.00027636,2]
[341723206,1731138640908,-500.0,0.00027909,2]
[341723207,1731138640919,-611.93,0.00027909,2]
[341723208,1731138640930,-500.0,0.00027909,2]
[341723209,1731138640939,-34.75197413,0.00027909,2]
[341723210,1731138640951,-469.36421274,0.00027909,2]
[341723232,1731138643872,-111.18381313,0.00027909,2]
[341723234,1731138643883,-500.0,0.00027909,2]
[341723236,1731138643893,-2746.96361368,0.00027909,2]
[341723238,1731138643902,-946.98600337,0.00027909,2]
[341723241,1731138643918,-1562.82208409,0.00027909,2]
[341723243,1731138643929,-500.0,0.0002791,2]
[341723245,1731138643938,-268.60651374,0.0002791,2]
[341723247,1731138643947,-1317.08,0.0002791,2]
[341723249,1731138643956,-636.78,0.0002791,2]
[341723251,1731138643965,-500.0,0.00028182,2]
[341723252,1731138643974,-500.0,0.00028182,2]
[341723254,1731138643983,-502.20796879,0.00028182,2]
[341723256,1731138643992,-500.0,0.00028182,2]
[341723258,1731138644002,-500.0,0.00028182,2]
[341723260,1731138644012,-500.0,0.00028182,2]
[341723262,1731138644021,-863.7,0.00028182,2]
[341723264,1731138644030,-500.0,0.00028182,2]
[341723266,1731138644039,-286.89657652,0.00028183,2]
[341723285,1731138681744,694.44444444,0.00020843,2]
[341723289,1731138790629,151.0,0.00020843,2]
[341723291,1731138910551,151.0,0.00027,60]
[341723296,1731138994352,694.44444444,0.00020843,2]
[341723324,1731139305401,694.44444444,0.00020843,2]
[341723336,1731139576122,150.0,0.00027,60]
[341723337,1731139616278,694.44444444,0.00020843,2]
[341723473,1731139843038,-694.44444444,0.00023515,2]
[341723475,1731139843048,-1735.9791667,0.00027602,2]
[341723477,1731139843057,-1019.57638886,0.00027908,2]
[341723502,1731139928075,694.44444444,0.00020843,2]
[341723513,1731140240445,694.44444444,0.00020843,2]
[341723514,1731140365506,175.4,0.00027,60]
[341723515,1731140551495,694.44444444,0.00020843,2]
[341723517,1731140674550,5112.21,0.0002084,2]
[341723539,1731140862133,694.44444444,0.00020843,2]
[341723635,1731141038217,-405.56735736,0.00025017,2]
[341723636,1731141038229,-288.87708708,0.00025017,2]
[341723637,1731141038239,-166.666666,0.00026842,2]
[341723638,1731141038249,-160.114,0.000278,2]
[341723639,1731141038260,-200.8797059,0.00028618,2]
[341723640,1731141038269,-14686.21197562,0.00028618,2]
[341723641,1731141038280,-330.9120363,0.00028618,2]
[341723642,1731141038339,-24201.16474656,0.00028618,2]
[341723690,1731141174197,694.44444444,0.00020843,2]
[341723694,1731141485735,694.44444444,0.00020843,2]
[341723695,1731141798750,694.44444444,0.00020843,2]
[341723703,1731142111783,694.44444444,0.00020843,2]
[341723749,1731142232520,-178.6445,0.00021407,2]
[341723751,1731142232529,-694.44444444,0.00026073,2]
[341723753,1731142232538,-153.0,0.0002738,2]
[341723755,1731142232547,-7782.83426994,0.00028112,2]
[341723757,1731142232556,-7782.83426995,0.00028223,2]
[341723759,1731142232569,-646.28189137,0.00028496,2]
[341723761,1731142232580,-151.97068858,0.00028496,2]
[341723763,1731142232591,-148.02931142,0.00028517,2]
[341723778,1731142238467,-694.44444444,0.00024765,2]
[341723779,1731142238477,-226.1665789,0.00028517,2]
[341723780,1731142238486,-874.58805747,0.00028587,10]
[341723786,1731142240251,-984.73194253,0.00028587,10]
[341723787,1731142240261,-451.19634692,0.00028592,30]
[341723788,1731142240272,-628.1,0.00028596,2]
[341723789,1731142240281,-500.0,0.00028596,2]
[341723790,1731142240290,-500.0,0.00028596,2]
[341723791,1731142240299,-500.0,0.00028596,2]
[341723792,1731142240308,-448.233518,0.00028596,2]
[341723793,1731142240317,-357.32612304,0.00028596,2]
[341723802,1731142243691,-142.67387696,0.00028596,2]
[341723803,1731142243700,-164.1424465,0.00028596,2]
[341723821,1731142423941,694.44444444,0.00020843,2]
[341723822,1731142735399,694.44444444,0.00020843,2]
[341723826,1731143046667,694.44444444,0.00020843,2]
[341723873,1731143364746,694.44444444,0.00020843,2]
[341723902,1731143432438,-427.25678871,0.00025744,2]
[341723960,1731143443561,-267.18765573,0.00025744,2]
[341723961,1731143443571,-178.200206,0.00026577,2]
[341723962,1731143443581,-938.3570715,0.00026994,2]
[341723964,1731143443590,-151.8131317,0.00027753,30]
[341723965,1731143443599,-698.47100743,0.00028385,2]
[341723966,1731143443609,-299.35671228,0.00028385,2]
[341723967,1731143443619,-1000.0,0.00028387,2]
[341723968,1731143443628,-302.0,0.0002846,20]
[341723969,1731143443638,-175.0,0.00028472,2]
[341723970,1731143443647,-300.0,0.00028472,2]
[341723971,1731143443656,-282.86121685,0.00028473,5]
[341723972,1731143443667,-410.42600659,0.00028473,5]
[341723973,1731143443677,-1105.19331256,0.00028475,10]
[341723984,1731143677961,694.44444444,0.00020843,2]
[341723989,1731143989475,694.44444444,0.00020843,2]
[341723992,1731144300887,694.44444444,0.00020843,2]
[341724038,1731144611639,694.44444444,0.00020843,2]
[341724177,1731144638923,-19038.90342308,0.00025,2]
[341724178,1731144638940,-200.0,0.00028,120]
[341724179,1731144638953,-239.4853698,0.00028282,2]
[341724180,1731144638963,-239.4853698,0.00028307,2]
[341724181,1731144638974,-694.44444444,0.00028331,2]
[341724182,1731144638984,-239.4853698,0.00028332,2]
[341724183,1731144638994,-239.4853698,0.00028357,2]
[341724184,1731144639005,-1905.17,0.00028372,10]
[341724185,1731144639017,-3633.03,0.00028372,10]
[341724186,1731144639027,-500.0,0.00028373,5]
[341724187,1731144639037,-500.0,0.00028381,2]
[341724188,1731144639049,-500.0,0.00028381,2]
[341724189,1731144639060,-500.0,0.00028381,2]
[341724190,1731144639069,-500.0,0.00028381,2]
[341724191,1731144639079,-500.0,0.00028381,2]
[341724192,1731144639089,-500.0,0.00028381,2]
[341724193,1731144639098,-411.48612263,0.00028381,2]
[341724194,1731144639108,-500.0,0.00028381,2]
[341724195,1731144639118,-500.0,0.00028381,2]
[341724196,1731144639128,-500.0,0.00028381,2]
[341724197,1731144639138,-500.0,0.00028381,2]
[341724198,1731144639148,-500.0,0.00028381,2]
[341724199,1731144639158,-500.0,0.00028381,2]
[341724200,1731144639167,-500.0,0.00028381,2]
[341724201,1731144639177,-500.0,0.00028381,2]
[341724202,1731144639186,-500.0,0.00028381,2]
[341724203,1731144639196,-500.0,0.00028381,2]
[341724204,1731144639206,-500.0,0.00028381,2]
[341724205,1731144639216,-500.0,0.00028381,2]
[341724206,1731144639226,-500.0,0.00028381,2]
[341724207,1731144639236,-500.0,0.00028381,2]
[341724208,1731144639245,-208.34727797,0.00028381,2]
[341724209,1731144639254,-500.0,0.00028381,2]
[341724210,1731144639264,-500.0,0.00028381,2]
[341724211,1731144639276,-500.0,0.00028381,2]
[341724212,1731144639286,-500.0,0.00028381,2]
[341724213,1731144639296,-500.0,0.00028381,2]
[341724214,1731144639445,-151.0,0.00028381,7]
[341724215,1731144639455,-151.0,0.00028381,7]
[341724216,1731144639465,-151.0,0.00028381,7]
[341724217,1731144639475,-500.0,0.00028381,2]
[341724218,1731144639486,-422.77481288,0.00028381,2]
[341724219,1731144639495,-577.96045342,0.00028381,2]
[341724220,1731144639506,-500.0,0.00028381,2]
[341724221,1731144639516,-257.1272441,0.00028381,2]
[341724222,1731144639525,-500.0,0.00028381,2]
[341724223,1731144639534,-500.0,0.00028381,2]
[341724224,1731144639544,-500.0,0.00028381,2]
[341724225,1731144639553,-430.89461656,0.00028381,2]
[341724226,1731144639563,-500.0,0.00028381,2]
[341724227,1731144639572,-1000.0,0.00028381,2]
[341724228,1731144639581,-337.79745286,0.00028382,2]
[341724229,1731144639590,-500.0,0.00028382,2]
[341724230,1731144639600,-500.0,0.00028382,2]
[341724231,1731144639609,-307.83046459,0.00028382,2]
[341724232,1731144639618,-500.0,0.00028382,2]
[341724233,1731144639627,-503.56490051,0.00028382,2]
[341724234,1731144639637,-501.56857057,0.00028382,2]
[341724235,1731144639646,-501.72439247,0.00028382,2]
[341724236,1731144639656,-500.0,0.00028382,2]
[341724237,1731144639667,-500.0,0.00028382,2]
[341724238,1731144639678,-500.0,0.00028382,2]
[341724239,1731144639689,-500.0,0.00028382,2]
[341724240,1731144639700,-509.170581,0.00028382,2]
[341724241,1731144639710,-512.11714021,0.00028382,2]
[341724242,1731144639720,-500.0,0.00028382,2]
[341724243,1731144639730,-500.0,0.00028382,2]
[341724244,1731144639741,-500.0,0.00028382,2]
[341724245,1731144639751,-500.0,0.00028382,2]
[341724246,1731144639761,-404.54251095,0.00028382,2]
[341724247,1731144639771,-436.9956122,0.00028382,2]
[341724248,1731144639780,-551.72,0.00028382,2]
[341724249,1731144639790,-500.0,0.00028382,2]
[341724250,1731144639800,-472.83,0.00028382,2]
[341724251,1731144639809,-500.0,0.00028382,2]
[341724252,1731144639820,-151.0,0.00028382,7]
[341724253,1731144639831,-151.0,0.00028382,7]
[341724254,1731144639840,-1323.39350467,0.00028382,2]
[341724261,1731144640534,-811.54359648,0.00028382,2]
[341724295,1731144645281,-600.0,0.00028381,2]
[341724297,1731144645291,-151.0,0.00028381,7]
[341724299,1731144645302,-2865.06289885,0.00028382,2]
[341724301,1731144645313,-530.29104856,0.00028382,2]
[341724306,1731144645345,-4469.70895144,0.00028382,2]
[341724308,1731144645355,-5000.0,0.00028382,2]
[341724309,1731144645364,-5000.0,0.00028382,2]
[341724311,1731144645374,-5000.0,0.00028382,2]
[341724312,1731144645383,-5000.0,0.00028382,2]
[341724313,1731144645393,-5000.0,0.00028382,2]
[341724314,1731144645403,-5000.0,0.00028382,2]
[341724315,1731144645412,-5000.0,0.00028382,2]
[341724317,1731144645422,-5000.0,0.00028382,2]
[341724318,1731144645432,-5000.0,0.00028382,2]
[341724320,1731144645441,-5000.0,0.00028382,2]
[341724322,1731144645451,-151.0,0.00028382,7]
[341724323,1731144645461,-5000.0,0.00028382,2]
[341724325,1731144645471,-5000.0,0.00028382,2]
[341724326,1731144645480,-5000.0,0.00028382,2]
[341724329,1731144645489,-5000.0,0.00028382,2]
[341724331,1731144645499,-5000.0,0.00028382,2]
[341724333,1731144645509,-5000.0,0.00028382,2]
[341724334,1731144645520,-5000.0,0.00028382,2]
[341724336,1731144645529,-5000.0,0.00028382,2]
[341724338,1731144645538,-5000.0,0.00028382,2]
[341724340,1731144645548,-151.0,0.00028382,7]
[341724343,1731144645558,-5000.0,0.00028382,2]
[341724345,1731144645568,-5000.0,0.00028382,2]
[341724347,1731144645577,-5000.0,0.00028382,2]
[341724349,1731144645587,-5000.0,0.00028382,2]
[341724351,1731144645597,-5000.0,0.00028382,2]
[341724353,1731144645606,-5000.0,0.00028382,2]
[341724355,1731144645615,-500.0,0.00028382,2]
[341724356,1731144645624,-5000.0,0.00028382,2]
[341724358,1731144645633,-5000.0,0.00028382,2]
[341724360,1731144645643,-5000.0,0.00028382,2]
[341724362,1731144645652,-5000.0,0.00028382,2]
[341724364,1731144645662,-5000.0,0.00028382,2]
[341724366,1731144645672,-5000.0,0.00028382,2]
[341724368,1731144645681,-500.0,0.00028382,2]
[341724369,1731144645691,-151.0,0.00028382,7]
[341724370,1731144645701,-411.77753636,0.00028382,2]
[341724371,1731144645710,-151.0,0.00028382,7]
[341724372,1731144645720,-500.0,0.00028382,2]
[341724373,1731144645730,-151.0,0.00028382,7]
[341724374,1731144645739,-500.0,0.00028382,2]
[341724375,1731144645749,-937.96,0.00028382,2]
[341724376,1731144645759,-500.0,0.00028382,2]
[341724377,1731144645770,-153.84698,0.00028382,7]
[341724378,1731144645780,-500.0,0.00028382,2]
[341724379,1731144645790,-151.0,0.00028382,7]
[341724380,1731144645799,-151.0,0.00028382,7]
[341724381,1731144645809,-151.977671,0.00028382,7]
[341724382,1731144645820,-500.0,0.00028382,2]
[341724383,1731144645831,-500.0,0.00028382,2]
[341724384,1731144645840,-500.0,0.00028382,2]
[341724385,1731144645850,-500.0,0.00028382,2]
[341724386,1731144645859,-151.204881,0.00028382,7]
[341724387,1731144645868,-239.4853698,0.00028382,2]
[341724388,1731144645878,-151.204881,0.00028382,7]
[341724389,1731144645888,-151.0,0.00028382,7]
[341724390,1731144645898,-151.0,0.00028382,7]
[341724391,1731144645907,-151.0,0.00028382,7]
[341724392,1731144645916,-151.0,0.00028382,7]
[341724393,1731144645926,-151.0,0.00028382,7]
[341724394,1731144645936,-151.0,0.00028382,7]
[341724395,1731144645946,-151.0,0.00028382,7]
[341724396,1731144645956,-151.0,0.00028382,7]
[341724397,1731144645966,-151.0,0.00028382,7]
[341724399,1731144645976,-151.0,0.00028382,7]
[341724400,1731144645985,-152.98771,0.00028382,7]
[341724401,1731144645995,-151.0,0.00028382,7]
[341724402,1731144646006,-161.398189,0.00028382,7]
[341724403,1731144646017,-151.0,0.00028382,7]
[341724404,1731144646027,-151.0,0.00028382,7]
[341724405,1731144646036,-151.0,0.00028382,7]
[341724406,1731144646046,-151.0,0.00028382,7]
[341724407,1731144646056,-151.0,0.00028382,7]
[341724408,1731144646066,-151.0,0.00028382,7]
[341724409,1731144646076,-151.0,0.00028382,7]
[341724410,1731144646086,-151.0,0.00028382,7]
[341724411,1731144646096,-151.0,0.00028382,7]
[341724412,1731144646105,-151.0,0.00028382,7]
[341724413,1731144646115,-151.0,0.00028382,7]
[341724414,1731144646125,-151.0,0.00028382,7]
[341724415,1731144646134,-151.0,0.00028382,7]
[341724416,1731144646147,-151.0,0.00028382,7]
[341724417,1731144646157,-151.0,0.00028382,7]
[341724418,1731144646167,-151.0,0.00028382,7]
[341724419,1731144646176,-151.0,0.00028382,7]
[341724420,1731144646186,-151.0,0.00028382,7]
[341724421,1731144646196,-153.534023,0.00028382,7]
[341724422,1731144646206,-151.0,0.00028382,7]
[341724423,1731144646216,-157.493176,0.00028382,7]
[341724424,1731144646226,-151.0,0.00028382,7]
[341724425,1731144646236,-151.0,0.00028382,7]
[341724426,1731144646246,-151.0,0.00028382,7]
[341724427,1731144646256,-151.0,0.00028382,7]
[341724428,1731144646269,-151.0,0.00028382,7]
[341724429,1731144646281,-151.0,0.00028382,7]
[341724430,1731144646291,-151.0,0.00028382,7]
[341724431,1731144646300,-151.0,0.00028382,7]
[341724432,1731144646311,-635.93,0.00028382,2]
[341724433,1731144646321,-151.0,0.00028382,7]
[341724434,1731144646331,-151.0,0.00028382,7]
[341724435,1731144646341,-151.0,0.00028382,7]
[341724436,1731144646354,-151.0,0.00028382,7]
[341724437,1731144646363,-151.0,0.00028382,7]
[341724438,1731144646373,-151.0,0.00028382,7]
[341724439,1731144646384,-151.0,0.00028382,7]
[341724440,1731144646395,-151.0,0.00028382,7]
[341724441,1731144646405,-151.0,0.00028382,7]
[341724442,1731144646415,-204.653876,0.00028382,7]
[341724443,1731144646425,-500.0,0.00028382,2]
[341724444,1731144646436,-500.0,0.00028382,2]
[341724446,1731144646447,-151.0,0.00028382,7]
[341724448,1731144646456,-151.0,0.00028382,7]
[341724449,1731144646467,-151.0,0.00028382,7]
[341724450,1731144646478,-151.0,0.00028382,7]
[341724451,1731144646488,-151.0,0.00028382,7]
[341724452,1731144646499,-151.0,0.00028382,7]
[341724453,1731144646510,-151.0,0.00028382,7]
[341724454,1731144646528,-151.0,0.00028382,7]
[341724455,1731144646537,-151.0,0.00028382,7]
[341724457,1731144646548,-151.0,0.00028382,7]
[341724458,1731144646558,-151.0,0.00028382,7]
[341724459,1731144646570,-190.870802,0.00028382,7]
[341724460,1731144646581,-164.435508,0.00028382,7]
[341724461,1731144646591,-164.435508,0.00028382,7]
[341724462,1731144646603,-164.435508,0.00028382,7]
[341724463,1731144646612,-164.435508,0.00028382,7]
[341724464,1731144646623,-164.435508,0.00028382,7]
[341724465,1731144646632,-164.435508,0.00028382,7]
[341724466,1731144646642,-500.0,0.00028382,2]
[341724467,1731144646652,-164.435508,0.00028382,7]
[341724468,1731144646662,-164.435508,0.00028382,7]
[341724469,1731144646672,-164.435508,0.00028382,7]
[341724470,1731144646681,-164.435508,0.00028382,7]
[341724471,1731144646691,-164.435508,0.00028382,7]
[341724472,1731144646701,-164.435508,0.00028382,7]
[341724473,1731144646711,-164.435508,0.00028382,7]
[341724474,1731144646721,-164.435508,0.00028382,7]
[341724476,1731144646731,-164.435508,0.00028382,7]
[341724477,1731144646740,-500.0,0.00028382,2]
[341724478,1731144646749,-164.435508,0.00028382,7]
[341724479,1731144646759,-164.435508,0.00028382,7]
[341724480,1731144646770,-164.435508,0.00028382,7]
[341724481,1731144646780,-164.435508,0.00028382,7]
[341724482,1731144646790,-164.435514,0.00028382,7]
[341724483,1731144646800,-500.0,0.00028382,2]
[341724484,1731144646811,-500.0,0.00028382,2]
[341724485,1731144646821,-151.0,0.00028382,7]
[341724486,1731144646832,-151.0,0.00028382,7]
[341724487,1731144646843,-151.0,0.00028382,7]
[341724488,1731144646854,-162.493518,0.00028382,7]
[341724489,1731144646863,-500.0,0.00028382,2]
[341724491,1731144646873,-301.68,0.00028382,2]
[341724492,1731144646883,-500.0,0.00028382,2]
[341724494,1731144646893,-151.0,0.00028383,7]
[341724495,1731144646903,-151.0,0.00028383,7]
[341724496,1731144646912,-151.0,0.00028383,7]
[341724497,1731144646922,-151.0,0.00028383,7]
[341724498,1731144646932,-151.0,0.00028383,7]
[341724499,1731144646942,-151.0,0.00028383,7]
[341724500,1731144646952,-317.800302,0.00028383,7]
[341724501,1731144646962,-317.800302,0.00028383,7]
[341724502,1731144646972,-317.800302,0.00028383,7]
[341724503,1731144646981,-317.800302,0.00028383,7]
[341724504,1731144646992,-151.0,0.00028383,7]
[341724505,1731144647002,-151.0,0.00028383,7]
[341724506,1731144647012,-151.0,0.00028383,7]
[341724507,1731144647023,-151.0,0.00028383,7]
[341724508,1731144647034,-151.0,0.00028383,7]
[341724509,1731144647043,-151.0,0.00028383,7]
[341724510,1731144647054,-151.0,0.00028383,7]
[341724511,1731144647064,-206.984919,0.00028383,7]
[341724512,1731144647075,-155.233365,0.00028383,7]
[341724513,1731144647085,-151.0,0.00028383,7]
[341724514,1731144647094,-151.0,0.00028383,7]
[341724515,1731144647104,-151.0,0.00028383,7]
[341724516,1731144647115,-153.872684,0.00028383,7]
[341724517,1731144647220,-151.0,0.00028383,7]
[341724518,1731144647232,-151.0,0.00028383,7]
[341724519,1731144647242,-151.0,0.00028383,7]
[341724520,1731144647252,-154.460284,0.00028383,7]
[341724521,1731144647262,-151.204881,0.00028383,7]
[341724522,1731144647276,-151.204881,0.00028383,7]
[341724523,1731144647286,-151.204881,0.00028383,7]
[341724524,1731144647296,-151.204881,0.00028383,7]
[341724525,1731144647307,-151.0,0.00028383,7]
[341724526,1731144647316,-151.0,0.00028383,7]
[341724527,1731144647325,-151.0,0.00028383,7]
[341724528,1731144647335,-248.152422,0.00028383,7]
[341724529,1731144647345,-151.0,0.00028383,7]
[341724530,1731144647354,-151.0,0.00028383,7]
[341724531,1731144647364,-51336.42287327,0.00028383,2]
[341724532,1731144647374,-317.800302,0.0002847,7]
[341724533,1731144647383,-317.800302,0.0002847,7]
[341724534,1731144647392,-151.0,0.0002847,7]
[341724535,1731144647401,-151.0,0.0002847,7]
[341724536,1731144647411,-151.0,0.0002847,7]
[341724537,1731144647420,-151.0,0.0002847,7]
[341724538,1731144647429,-168.246695,0.0002847,7]
[341724539,1731144647438,-151.204881,0.0002847,7]
[341724540,1731144647447,-151.204881,0.0002847,7]
[341724541,1731144647456,-151.0,0.0002847,7]
[341724542,1731144647465,-151.0,0.0002847,7]
[341724543,1731144647474,-151.0,0.00028471,7]
[341724544,1731144647483,-151.0,0.00028471,7]
[341724545,1731144647492,-151.0,0.00028471,7]
[341724546,1731144647501,-151.0,0.00028471,7]
[341724547,1731144647510,-151.0,0.00028471,7]
[341724548,1731144647520,-151.0,0.00028471,7]
[341724549,1731144647528,-151.0,0.00028471,7]
[341724550,1731144647538,-151.0,0.00028471,7]
[341724551,1731144647546,-151.0,0.00028471,7]
[341724552,1731144647555,-151.0,0.00028471,7]
[341724553,1731144647564,-151.0,0.00028471,7]
[341724554,1731144647573,-151.0,0.00028471,7]
[341724555,1731144647582,-151.0,0.00028471,7]
[341724556,1731144647591,-152.968146,0.00028471,7]
[341724557,1731144647600,-151.0,0.00028471,7]
[341724558,1731144647609,-151.0,0.00028471,7]
[341724559,1731144647618,-151.0,0.00028471,7]
[341724560,1731144647627,-151.204881,0.00028471,7]
[341724561,1731144647636,-151.204881,0.00028471,7]
[341724562,1731144647645,-151.0,0.00028471,7]
[341724563,1731144647655,-151.0,0.00028471,7]
[341724564,1731144647665,-151.0,0.00028472,7]
[341724565,1731144647674,-151.0,0.00028472,7]
[341724566,1731144647683,-153.447323,0.00028472,7]
[341724567,1731144647692,-176.71982,0.00028472,7]
[341724568,1731144647701,-151.0,0.00028472,7]
[341724569,1731144647710,-151.0,0.00028472,7]
[341724570,1731144647719,-163.160283,0.00028472,7]
[341724571,1731144647729,-151.0,0.00028472,7]
[341724572,1731144647739,-317.800302,0.00028472,7]
[341724573,1731144647748,-317.800302,0.00028472,7]
[341724574,1731144647758,-151.0,0.00028472,7]
[341724575,1731144647768,-151.0,0.00028472,7]
[341724576,1731144647776,-151.0,0.00028472,7]
[341724577,1731144647786,-151.204881,0.00028472,7]
[341724578,1731144647794,-151.204881,0.00028472,7]
[341724579,1731144647803,-151.0,0.00028472,7]
[341724580,1731144647813,-151.0,0.00028472,7]
[341724581,1731144647821,-151.0,0.00028473,7]
[341724582,1731144647832,-151.0,0.00028473,7]
[341724583,1731144647841,-151.0,0.00028473,7]
[341724584,1731144647850,-153.238948,0.00028473,7]
[341724585,1731144647859,-151.0,0.00028473,7]
[341724586,1731144647869,-317.800302,0.00028473,7]
[341724587,1731144647877,-317.800302,0.00028473,7]
[341724588,1731144647887,-151.0,0.00028473,7]
[341724589,1731144647896,-151.0,0.00028473,7]
[341724590,1731144647905,-151.0,0.00028473,7]
[341724591,1731144647914,-151.204881,0.00028473,7]
[341724592,1731144647923,-151.204881,0.00028473,7]
[341724593,1731144647932,-151.0,0.00028473,7]
[341724594,1731144647941,-151.0,0.00028473,7]
[341724595,1731144647950,-500.0,0.00028475,120]
[341724596,1731144647959,-317.800302,0.00028479,7]
[341724597,1731144647969,-317.800302,0.00028479,7]
[341724598,1731144647979,-317.800302,0.00028479,7]
[341724599,1731144647988,-317.800302,0.00028479,7]
[341724600,1731144647998,-317.800302,0.00028479,7]
[341724601,1731144648010,-317.800302,0.00028479,7]
[341724602,1731144648022,-151.0,0.00028479,7]
[341724603,1731144648032,-151.0,0.00028479,7]
[341724604,1731144648041,-157.948587,0.00028479,7]
[341724605,1731144648051,-151.0,0.00028479,7]
[341724606,1731144648060,-151.0,0.00028479,7]
[341724607,1731144648069,-225.248915,0.00028479,7]
[341724608,1731144648079,-151.204881,0.00028479,7]
[341724609,1731144648088,-151.204881,0.00028479,7]
[341724610,1731144648097,-151.204881,0.00028479,7]
[341724611,1731144648106,-151.204881,0.00028479,7]
[341724612,1731144648115,-151.204881,0.00028479,7]
[341724613,1731144648124,-151.204883,0.00028479,7]
[341724614,1731144648133,-151.0,0.00028479,7]
[341724615,1731144648143,-151.0,0.00028479,7]
[341724616,1731144648152,-151.0,0.00028479,7]
[341724617,1731144648162,-155.116131,0.00028479,7]
[341724618,1731144648172,-151.0,0.0002848,7]
[341724619,1731144648182,-151.0,0.0002848,7]
[341724620,1731144648191,-151.0,0.0002848,7]
[341724621,1731144648200,-151.0,0.0002848,7]
[341724622,1731144648209,-151.0,0.0002848,7]
[341724623,1731144648221,-151.0,0.0002848,7]
[341724624,1731144648230,-151.165738,0.0002848,7]
[341724625,1731144648240,-317.800302,0.0002848,7]
[341724626,1731144648249,-317.800302,0.0002848,7]
[341724627,1731144648258,-317.800302,0.0002848,7]
[341724628,1731144648271,-317.8003,0.0002848,7]
[341724629,1731144648280,-500.0,0.00028481,2]
[341724630,1731144648290,-589.66,0.00028481,2]
[341724631,1731144648300,-151.0,0.00028481,7]
[341724632,1731144648311,-151.0,0.00028481,7]
[341724633,1731144648320,-151.0,0.00028481,7]
[341724634,1731144648330,-151.0,0.00028481,7]
[341724635,1731144648339,-151.0,0.00028481,7]
[341724636,1731144648350,-151.0,0.00028481,7]
[341724637,1731144648362,-151.0,0.00028481,7]
[341724638,1731144648373,-151.0,0.00028481,7]
[341724639,1731144648382,-151.0,0.00028481,7]
[341724640,1731144648395,-151.0,0.00028481,7]
[341724641,1731144648404,-151.0,0.00028481,7]
[341724642,1731144648413,-151.0,0.00028481,7]
[341724643,1731144648422,-151.0,0.00028481,7]
[341724644,1731144648431,-151.0,0.00028481,7]
[341724645,1731144648440,-151.0,0.00028481,7]
[341724646,1731144648453,-151.0,0.00028481,7]
[341724647,1731144648463,-503.55560536,0.00028481,2]
[341724648,1731144648472,-151.0,0.00028481,7]
[341724649,1731144648482,-151.0,0.00028481,7]
[341724650,1731144648492,-151.0,0.00028481,3]
[341724651,1731144648501,-151.0,0.00028481,7]
[341724652,1731144648510,-154.152178,0.00028481,7]
[341724653,1731144648519,-151.0,0.00028481,3]
[341724654,1731144648529,-151.0,0.00028481,3]
[341724655,1731144648539,-151.0,0.00028481,3]